[Event "Titled Tuesday Blitz April 12 Early 2022"]
[White "Sahil, Tickoo"]
[Black "Domingo Nunez, Alejandro"]
[WhiteFideId "5019710"]
[BlackFideId "22245561"]
[WhiteElo "2099"]
[BlackElo "2215"]
[Result "0-1"]
[Round "01"]
[TimeControl "180+1"]
[Date "2022.04.13"]
[WhiteClock "0:00:02"]
[BlackClock "0:00:17"]

1. d4 {[%clk 0:02:15]}  Nf6 {[%clk 0:02:59]} 2. Bf4 {[%clk 0:02:13]}  g6 {[%clk 0:02:59]} 3. e3 {[%clk 0:02:14]}  Bg7 {[%clk 0:02:59]} 4. Nd2 {[%clk 0:02:11]}  b6 {[%clk 0:02:59]} 5. Qf3 {[%clk 0:02:10]}  Nc6 {[%clk 0:02:58]} 6. c3 {[%clk 0:02:10]}  Bb7 {[%clk 0:02:59]} 7. Qd1 {[%clk 0:02:06]}  O-O {[%clk 0:02:58]} 8. Ngf3 {[%clk 0:02:02]}  d6 {[%clk 0:02:55]} 9. h3 {[%clk 0:02:02]}  Nd7 {[%clk 0:02:49]} 10. Bh2 {[%clk 0:02:02]}  e5 {[%clk 0:02:50]} 11. Be2 {[%clk 0:01:59]}  Kh8 {[%clk 0:02:50]} 12. O-O {[%clk 0:01:58]}  Qe8 {[%clk 0:02:51]} 13. a4 {[%clk 0:01:56]}  a5 {[%clk 0:02:51]} 14. Nc4 {[%clk 0:01:51]}  e4 {[%clk 0:02:50]} 15. Nfd2 {[%clk 0:01:51]}  f5 {[%clk 0:02:50]} 16. Na3 {[%clk 0:01:48]}  Qe7 {[%clk 0:02:48]} 17. Nb5 {[%clk 0:01:47]}  Nf6 {[%clk 0:02:48]} 18. Rc1 {[%clk 0:01:45]}  g5 {[%clk 0:02:46]} 19. c4 {[%clk 0:01:44]}  Nb4 {[%clk 0:02:46]} 20. Nb3 {[%clk 0:01:41]}  Rad8 {[%clk 0:02:35]} 21. d5 {[%clk 0:01:40]}  Bc8 {[%clk 0:02:28]} 22. N3d4 {[%clk 0:01:37]}  Ne8 {[%clk 0:02:29]} 23. Rc3 {[%clk 0:01:24]}  Qf6 {[%clk 0:02:17]} 24. Rb3 {[%clk 0:01:19]}  f4 {[%clk 0:02:15]} 25. Bg4 {[%clk 0:01:17]}  f3 {[%clk 0:01:57]} 26. Bxc8 {[%clk 0:01:15]}  fxg2 {[%clk 0:01:56]} 27. Kxg2 {[%clk 0:01:14]}  Rxc8 {[%clk 0:01:57]} 28. Ne6 {[%clk 0:01:13]}  Rf7 {[%clk 0:01:45]} 29. Nbd4 {[%clk 0:01:04]}  Qg6 {[%clk 0:01:34]} 30. Qg4 {[%clk 0:00:58]}  Nf6 {[%clk 0:01:15]} 31. Qxg5 {[%clk 0:00:54]}  Qxg5+ {[%clk 0:01:11]} 32. Nxg5 {[%clk 0:00:55]}  Re7 {[%clk 0:01:12]} 33. Nge6 {[%clk 0:00:54]}  Bh6 {[%clk 0:01:08]} 34. Nf5 {[%clk 0:00:53]}  Ng8 {[%clk 0:00:48]} 35. Nxe7 {[%clk 0:00:40]}  Nxe7 {[%clk 0:00:48]} 36. Bf4 {[%clk 0:00:36]}  Bxf4 {[%clk 0:00:44]} 37. Nxf4 {[%clk 0:00:34]}  Nf5 {[%clk 0:00:44]} 38. Rg1 {[%clk 0:00:20]}  Nh4+ {[%clk 0:00:27]} 39. Kf1 {[%clk 0:00:20]}  Nf3 {[%clk 0:00:28]} 40. Rg3 {[%clk 0:00:20]}  Nd2+ {[%clk 0:00:28]} 41. Kg2 {[%clk 0:00:17]}  Nxb3 {[%clk 0:00:29]} 42. Ne6 {[%clk 0:00:15]}  Rg8 {[%clk 0:00:29]} 43. Nxc7 {[%clk 0:00:14]}  Nc5 {[%clk 0:00:21]} 44. Rg4 {[%clk 0:00:09]}  h5 {[%clk 0:00:19]} 45. Rxg8+ {[%clk 0:00:09]}  Kxg8 {[%clk 0:00:20]} 46. Kg3 {[%clk 0:00:08]}  Nbd3 {[%clk 0:00:19]} 47. Ne8 {[%clk 0:00:06]}  Nb7 {[%clk 0:00:17]} 48. f3 {[%clk 0:00:04]}  h4+ {[%clk 0:00:17]} 49. Kg4 {[%clk 0:00:04]}  Ne5+ {[%clk 0:00:16]} 50. Kxh4 {[%clk 0:00:03]}  exf3 {[%clk 0:00:17]} 51. Kg3 {[%clk 0:00:03]}  Kf7 {[%clk 0:00:17]} 52. Nc7 {[%clk 0:00:03]}  Nc5 {[%clk 0:00:17]} 53. Nb5 {[%clk 0:00:03]}  Ne4+ {[%clk 0:00:16]} 54. Kh2 {[%clk 0:00:03]}  f2 {[%clk 0:00:17]} 55. Kg2 {[%clk 0:00:02]}  Nf3 {[%clk 0:00:17]} 0-1


[Site "https://www.chess.com"]

[Event "Titled Tuesday Blitz April 12 Early 2022"]
[White "Samaganova, Aleksandra"]
[Black "Taichman, Ori"]
[WhiteFideId "13800221"]
[BlackFideId "2804069"]
[WhiteElo "1859"]
[BlackElo "2227"]
[Result "0-1"]
[Round "01"]
[TimeControl "180+1"]
[Date "2022.04.13"]
[WhiteClock "0:00:03"]
[BlackClock "0:01:02"]

1. c4 {[%clk 0:03:00]}  g6 {[%clk 0:02:55]} 2. Nc3 {[%clk 0:02:59]}  Bg7 {[%clk 0:02:55]} 3. g3 {[%clk 0:02:58]}  Nf6 {[%clk 0:02:55]} 4. Bg2 {[%clk 0:02:56]}  O-O {[%clk 0:02:56]} 5. e4 {[%clk 0:02:49]}  d6 {[%clk 0:02:56]} 6. Nge2 {[%clk 0:02:46]}  c5 {[%clk 0:02:56]} 7. O-O {[%clk 0:02:43]}  Nc6 {[%clk 0:02:56]} 8. d3 {[%clk 0:02:41]}  Nd4 {[%clk 0:02:56]} 9. h3 {[%clk 0:02:30]}  Rb8 {[%clk 0:02:55]} 10. Nxd4 {[%clk 0:02:24]}  cxd4 {[%clk 0:02:56]} 11. Ne2 {[%clk 0:02:25]}  Nd7 {[%clk 0:02:56]} 12. a4 {[%clk 0:02:22]}  a5 {[%clk 0:02:55]} 13. Bd2 {[%clk 0:02:20]}  Nc5 {[%clk 0:02:55]} 14. Qc2 {[%clk 0:02:18]}  b6 {[%clk 0:02:52]} 15. b4 {[%clk 0:02:14]}  axb4 {[%clk 0:02:52]} 16. Bxb4 {[%clk 0:02:14]}  Bd7 {[%clk 0:02:53]} 17. a5 {[%clk 0:02:11]}  bxa5 {[%clk 0:02:45]} 18. Bxa5 {[%clk 0:02:11]}  Qc8 {[%clk 0:02:46]} 19. Kh2 {[%clk 0:02:01]}  Rb3 {[%clk 0:02:45]} 20. Nc1 {[%clk 0:01:52]}  Rb7 {[%clk 0:02:37]} 21. Ne2 {[%clk 0:01:24]}  Nb3 {[%clk 0:02:27]} 22. Ra2 {[%clk 0:01:13]}  Nxa5 {[%clk 0:02:07]} 23. Rxa5 {[%clk 0:01:11]}  Qc7 {[%clk 0:02:07]} 24. Raa1 {[%clk 0:01:04]}  Rfb8 {[%clk 0:02:08]} 25. Rfb1 {[%clk 0:01:04]}  h5 {[%clk 0:01:49]} 26. Nf4 {[%clk 0:00:47]}  h4 {[%clk 0:01:46]} 27. Nd5 {[%clk 0:00:46]}  hxg3+ {[%clk 0:01:46]} 28. fxg3 {[%clk 0:00:45]}  Qd8 {[%clk 0:01:47]} 29. Rxb7 {[%clk 0:00:41]}  Rxb7 {[%clk 0:01:48]} 30. Rb1 {[%clk 0:00:41]}  Rxb1 {[%clk 0:01:36]} 31. Qxb1 {[%clk 0:00:42]}  e6 {[%clk 0:01:36]} 32. Qb6 {[%clk 0:00:34]}  Qg5 {[%clk 0:01:15]} 33. Nf4 {[%clk 0:00:19]}  Be5 {[%clk 0:01:06]} 34. Ne2 {[%clk 0:00:11]}  Qe3 {[%clk 0:01:04]} 35. Qd8+ {[%clk 0:00:08]}  Kg7 {[%clk 0:01:04]} 36. Qxd7 {[%clk 0:00:09]}  Qxe2 {[%clk 0:01:05]} 37. Qc7 {[%clk 0:00:03]}  Qxd3 {[%clk 0:01:03]} 38. c5 {[%clk 0:00:03]}  Qxg3+ {[%clk 0:01:03]} 39. Kg1 {[%clk 0:00:03]}  Qe1+ {[%clk 0:01:00]} 40. Bf1 {[%clk 0:00:03]}  Qe3+ {[%clk 0:01:01]} 41. Kg2 {[%clk 0:00:03]}  Qg3+ {[%clk 0:01:01]} 42. Kh1 {[%clk 0:00:03]}  Qh2# {[%clk 0:01:02]} 0-1


[Site "https://www.chess.com"]

[Event "Titled Tuesday Blitz April 12 Early 2022"]
[White "Sanchez, Robert"]
[Black "Rostovtsev, Dmitry"]
[WhiteFideId "2034360"]
[BlackFideId "34278320"]
[WhiteElo "2359"]
[BlackElo "2272"]
[Result "1/2-1/2"]
[Round "01"]
[TimeControl "180+1"]
[Date "2022.04.13"]
[WhiteClock "0:00:04"]
[BlackClock "0:00:07"]

1. e4 {[%clk 0:03:00]}  e5 {[%clk 0:02:59]} 2. Nf3 {[%clk 0:03:00]}  Nc6 {[%clk 0:02:58]} 3. Bb5 {[%clk 0:03:00]}  a6 {[%clk 0:02:55]} 4. Ba4 {[%clk 0:02:59]}  Nge7 {[%clk 0:02:54]} 5. c3 {[%clk 0:02:59]}  d6 {[%clk 0:02:53]} 6. O-O {[%clk 0:02:59]}  g6 {[%clk 0:02:52]} 7. d4 {[%clk 0:02:58]}  Bd7 {[%clk 0:02:53]} 8. Bc2 {[%clk 0:02:55]}  Bg7 {[%clk 0:02:52]} 9. h3 {[%clk 0:02:55]}  O-O {[%clk 0:02:52]} 10. Be3 {[%clk 0:02:55]}  f5 {[%clk 0:02:42]} 11. dxe5 {[%clk 0:02:51]}  f4 {[%clk 0:02:34]} 12. Bc1 {[%clk 0:02:41]}  Nxe5 {[%clk 0:02:24]} 13. Bb3+ {[%clk 0:02:41]}  Kh8 {[%clk 0:02:24]} 14. Nxe5 {[%clk 0:02:38]}  Bxe5 {[%clk 0:02:24]} 15. Nd2 {[%clk 0:02:38]}  Nc6 {[%clk 0:02:17]} 16. Nf3 {[%clk 0:02:37]}  Bg7 {[%clk 0:02:16]} 17. Bd5 {[%clk 0:02:27]}  Qe7 {[%clk 0:02:10]} 18. Re1 {[%clk 0:02:26]}  Rab8 {[%clk 0:02:10]} 19. Bxc6 {[%clk 0:02:05]}  Bxc6 {[%clk 0:02:11]} 20. Nd4 {[%clk 0:02:05]}  Bd7 {[%clk 0:02:10]} 21. f3 {[%clk 0:01:52]}  Rbe8 {[%clk 0:02:07]} 22. Nc2 {[%clk 0:01:48]}  Qg5 {[%clk 0:01:57]} 23. Kh1 {[%clk 0:01:46]}  Re5 {[%clk 0:01:49]} 24. Qe2 {[%clk 0:01:45]}  Qh4 {[%clk 0:01:47]} 25. Qf1 {[%clk 0:01:38]}  g5 {[%clk 0:01:39]} 26. Bd2 {[%clk 0:01:32]}  g4 {[%clk 0:01:37]} 27. fxg4 {[%clk 0:01:30]}  f3 {[%clk 0:01:37]} 28. Re3 {[%clk 0:01:02]}  Bxg4 {[%clk 0:01:34]} 29. Kg1 {[%clk 0:01:00]}  fxg2 {[%clk 0:01:26]} 30. Qxg2 {[%clk 0:01:00]}  Bh5 {[%clk 0:01:05]} 31. Rg3 {[%clk 0:00:59]}  Bg6 {[%clk 0:01:06]} 32. Re1 {[%clk 0:00:58]}  Rxe4 {[%clk 0:01:03]} 33. Rxg6 {[%clk 0:00:55]}  Rxe1+ {[%clk 0:00:49]} 34. Bxe1 {[%clk 0:00:55]}  Qe7 {[%clk 0:00:39]} 35. Rg4 {[%clk 0:00:48]}  Bf6 {[%clk 0:00:30]} 36. Bf2 {[%clk 0:00:47]}  c5 {[%clk 0:00:29]} 37. Ne3 {[%clk 0:00:43]}  Qe6 {[%clk 0:00:27]} 38. Nd5 {[%clk 0:00:36]}  Be5 {[%clk 0:00:23]} 39. c4 {[%clk 0:00:22]}  b5 {[%clk 0:00:23]} 40. b3 {[%clk 0:00:22]}  bxc4 {[%clk 0:00:23]} 41. bxc4 {[%clk 0:00:23]}  Rb8 {[%clk 0:00:23]} 42. Bg3 {[%clk 0:00:22]}  Bd4+ {[%clk 0:00:18]} 43. Kh2 {[%clk 0:00:22]}  Rb1 {[%clk 0:00:16]} 44. Bf2 {[%clk 0:00:22]}  Be5+ {[%clk 0:00:16]} 45. Bg3 {[%clk 0:00:20]}  Bd4 {[%clk 0:00:16]} 46. Bf2 {[%clk 0:00:16]}  Be5+ {[%clk 0:00:16]} 47. Nf4 {[%clk 0:00:14]}  Qf7 {[%clk 0:00:15]} 48. Bg3 {[%clk 0:00:13]}  Bd4 {[%clk 0:00:10]} 49. Ne2 {[%clk 0:00:12]}  Rb2 {[%clk 0:00:08]} 50. Rf4 {[%clk 0:00:09]}  Qg7 {[%clk 0:00:08]} 51. Qa8+ {[%clk 0:00:07]}  Qg8 {[%clk 0:00:07]} 52. Qf3 {[%clk 0:00:07]}  Bg7 {[%clk 0:00:06]} 53. Bf2 {[%clk 0:00:07]}  Qe8 {[%clk 0:00:04]} 54. Re4 {[%clk 0:00:05]}  Qf8 {[%clk 0:00:03]} 55. Qxf8+ {[%clk 0:00:05]}  Bxf8 {[%clk 0:00:04]} 56. Kg3 {[%clk 0:00:05]}  Kg8 {[%clk 0:00:03]} 57. Kf3 {[%clk 0:00:05]}  Rxa2 {[%clk 0:00:04]} 58. Bg3 {[%clk 0:00:05]}  Ra3+ {[%clk 0:00:04]} 59. Kg4 {[%clk 0:00:05]}  Kf7 {[%clk 0:00:03]} 60. Nf4 {[%clk 0:00:05]}  a5 {[%clk 0:00:02]} 61. Nd5 {[%clk 0:00:05]}  a4 {[%clk 0:00:03]} 62. Rf4+ {[%clk 0:00:05]}  Ke8 {[%clk 0:00:02]} 63. Nf6+ {[%clk 0:00:05]}  Kd8 {[%clk 0:00:02]} 64. Nxh7 {[%clk 0:00:05]}  Be7 {[%clk 0:00:03]} 65. Bh4 {[%clk 0:00:04]}  Bxh4 {[%clk 0:00:02]} 66. Kxh4 {[%clk 0:00:05]}  Ra1 {[%clk 0:00:03]} 67. Rf7 {[%clk 0:00:05]}  a3 {[%clk 0:00:04]} 68. Nf6 {[%clk 0:00:05]}  Kc8 {[%clk 0:00:03]} 69. Ra7 {[%clk 0:00:05]}  Kb8 {[%clk 0:00:03]} 70. Ra4 {[%clk 0:00:05]}  a2 {[%clk 0:00:03]} 71. Nd5 {[%clk 0:00:05]}  Kb7 {[%clk 0:00:03]} 72. Kh5 {[%clk 0:00:05]}  Rh1 {[%clk 0:00:02]} 73. Rxa2 {[%clk 0:00:05]}  Rxh3+ {[%clk 0:00:02]} 74. Kg6 {[%clk 0:00:05]}  Rd3 {[%clk 0:00:03]} 75. Rc2 {[%clk 0:00:05]}  Kc6 {[%clk 0:00:02]} 76. Kf6 {[%clk 0:00:05]}  Rd4 {[%clk 0:00:02]} 77. Ke6 {[%clk 0:00:05]}  Re4+ {[%clk 0:00:03]} 78. Kf7 {[%clk 0:00:05]}  Rd4 {[%clk 0:00:01]} 79. Ke7 {[%clk 0:00:04]}  Re4+ {[%clk 0:00:02]} 80. Kd8 {[%clk 0:00:04]}  Rxc4 {[%clk 0:00:02]} 81. Rxc4 {[%clk 0:00:03]}  Kxd5 {[%clk 0:00:03]} 82. Rc1 {[%clk 0:00:03]}  c4 {[%clk 0:00:03]} 83. Kd7 {[%clk 0:00:04]}  Kc5 {[%clk 0:00:03]} 84. Ke6 {[%clk 0:00:03]}  d5 {[%clk 0:00:03]} 85. Ke5 {[%clk 0:00:04]}  d4 {[%clk 0:00:04]} 86. Ke4 {[%clk 0:00:04]}  d3 {[%clk 0:00:05]} 87. Ke3 {[%clk 0:00:03]}  Kb4 {[%clk 0:00:05]} 88. Kd4 {[%clk 0:00:03]}  d2 {[%clk 0:00:05]} 89. Rd1 {[%clk 0:00:02]}  c3 {[%clk 0:00:06]} 90. Kd3 {[%clk 0:00:03]}  Kb3 {[%clk 0:00:06]} 91. Rxd2 {[%clk 0:00:03]}  cxd2 {[%clk 0:00:07]} 92. Kxd2 {[%clk 0:00:04]} 1/2-1/2


[Site "https://www.chess.com"]

[Event "Titled Tuesday Blitz April 12 Early 2022"]
[White "Savchenko, Boris"]
[Black "Taspinar, Yanki"]
[WhiteFideId "4147332"]
[BlackFideId "34561188"]
[WhiteElo "2557"]
[BlackElo "1518"]
[Result "0-1"]
[Round "01"]
[TimeControl "180+1"]
[Date "2022.04.13"]
[WhiteClock "0:00:46"]
[BlackClock "0:00:30"]

1. e4 {[%clk 0:02:58]}  e5 {[%clk 0:02:58]} 2. Nf3 {[%clk 0:02:57]}  Nc6 {[%clk 0:02:59]} 3. Bc4 {[%clk 0:02:57]}  Nf6 {[%clk 0:02:59]} 4. d3 {[%clk 0:02:56]}  Bc5 {[%clk 0:02:59]} 5. c3 {[%clk 0:02:55]}  d6 {[%clk 0:02:59]} 6. b4 {[%clk 0:02:55]}  Bb6 {[%clk 0:02:59]} 7. a4 {[%clk 0:02:55]}  a5 {[%clk 0:02:58]} 8. b5 {[%clk 0:02:55]}  Ne7 {[%clk 0:02:58]} 9. O-O {[%clk 0:02:53]}  h6 {[%clk 0:02:58]} 10. Re1 {[%clk 0:02:53]}  O-O {[%clk 0:02:58]} 11. Nbd2 {[%clk 0:02:53]}  c6 {[%clk 0:02:58]} 12. Nf1 {[%clk 0:02:52]}  Ng6 {[%clk 0:02:55]} 13. Ng3 {[%clk 0:02:51]}  d5 {[%clk 0:02:51]} 14. exd5 {[%clk 0:02:50]}  cxd5 {[%clk 0:02:52]} 15. Bb3 {[%clk 0:02:50]}  Re8 {[%clk 0:02:51]} 16. Be3 {[%clk 0:02:44]}  Bg4 {[%clk 0:02:46]} 17. h3 {[%clk 0:02:42]}  Bxe3 {[%clk 0:02:39]} 18. hxg4 {[%clk 0:02:37]}  Bb6 {[%clk 0:02:33]} 19. Nh2 {[%clk 0:02:19]}  Rc8 {[%clk 0:02:31]} 20. Rc1 {[%clk 0:02:19]}  Qd6 {[%clk 0:02:14]} 21. Nf5 {[%clk 0:02:16]}  Qc5 {[%clk 0:02:14]} 22. d4 {[%clk 0:02:14]}  exd4 {[%clk 0:02:10]} 23. Rxe8+ {[%clk 0:02:13]}  Rxe8 {[%clk 0:02:10]} 24. Nxd4 {[%clk 0:02:14]}  Ne4 {[%clk 0:02:06]} 25. Nhf3 {[%clk 0:02:07]}  Nf4 {[%clk 0:01:48]} 26. Qc2 {[%clk 0:02:05]}  Rc8 {[%clk 0:01:17]} 27. Ne5 {[%clk 0:01:56]}  Nxc3 {[%clk 0:01:04]} 28. Qf5 {[%clk 0:01:45]}  Nce2+ {[%clk 0:00:50]} 29. Kh2 {[%clk 0:01:40]}  Qxc1 {[%clk 0:00:48]} 30. Qxf7+ {[%clk 0:01:36]}  Kh8 {[%clk 0:00:46]} 31. Nxe2 {[%clk 0:01:34]}  Nxe2 {[%clk 0:00:43]} 32. Nf3 {[%clk 0:00:53]}  Qf4+ {[%clk 0:00:42]} 33. Qxf4 {[%clk 0:00:52]}  Nxf4 {[%clk 0:00:43]} 34. Ne5 {[%clk 0:00:50]}  Bxf2 {[%clk 0:00:41]} 35. g3 {[%clk 0:00:50]}  Ne2 {[%clk 0:00:38]} 36. Kg2 {[%clk 0:00:47]}  Bxg3 {[%clk 0:00:38]} 37. Nf7+ {[%clk 0:00:45]}  Kh7 {[%clk 0:00:34]} 38. Bxd5 {[%clk 0:00:46]}  Nf4+ {[%clk 0:00:33]} 39. Kxg3 {[%clk 0:00:46]}  Nxd5 {[%clk 0:00:33]} 40. Nd6 {[%clk 0:00:46]}  Rc3+ {[%clk 0:00:33]} 41. Kf2 {[%clk 0:00:46]}  b6 {[%clk 0:00:30]} 0-1


[Site "https://www.chess.com"]

[Event "Titled Tuesday Blitz April 12 Early 2022"]
[White "Seo, Jung Min"]
[Black "Marcziter, Dmitrii"]
[WhiteFideId "1734687"]
[BlackFideId "13900765"]
[WhiteElo "2401"]
[BlackElo "2155"]
[Result "1-0"]
[Round "01"]
[TimeControl "180+1"]
[Date "2022.04.13"]
[WhiteClock "0:01:12"]
[BlackClock "0:00:41"]

1. d4 {[%clk 0:03:00]}  Nf6 {[%clk 0:02:57]} 2. c4 {[%clk 0:03:00]}  g6 {[%clk 0:02:57]} 3. Nc3 {[%clk 0:03:00]}  Bg7 {[%clk 0:02:57]} 4. e4 {[%clk 0:03:00]}  d6 {[%clk 0:02:57]} 5. Nf3 {[%clk 0:03:00]}  O-O {[%clk 0:02:57]} 6. Be2 {[%clk 0:03:00]}  Na6 {[%clk 0:02:56]} 7. O-O {[%clk 0:03:00]}  c5 {[%clk 0:02:56]} 8. d5 {[%clk 0:03:00]}  e6 {[%clk 0:02:55]} 9. h3 {[%clk 0:02:57]}  Re8 {[%clk 0:02:54]} 10. Nd2 {[%clk 0:02:54]}  Nc7 {[%clk 0:02:52]} 11. Re1 {[%clk 0:02:54]}  a6 {[%clk 0:02:51]} 12. a4 {[%clk 0:02:53]}  Rb8 {[%clk 0:02:51]} 13. Bf1 {[%clk 0:02:52]}  exd5 {[%clk 0:02:50]} 14. exd5 {[%clk 0:02:47]}  Rxe1 {[%clk 0:02:48]} 15. Qxe1 {[%clk 0:02:47]}  b5 {[%clk 0:02:43]} 16. axb5 {[%clk 0:02:46]}  axb5 {[%clk 0:02:43]} 17. cxb5 {[%clk 0:02:41]}  Ncxd5 {[%clk 0:02:40]} 18. Nc4 {[%clk 0:02:38]}  Nb4 {[%clk 0:02:36]} 19. Qd1 {[%clk 0:02:33]}  d5 {[%clk 0:02:30]} 20. Bf4 {[%clk 0:02:32]}  Rb7 {[%clk 0:02:19]} 21. Nd6 {[%clk 0:02:31]}  Rd7 {[%clk 0:02:15]} 22. Ra8 {[%clk 0:02:28]}  Rxd6 {[%clk 0:02:11]} 23. Bxd6 {[%clk 0:02:27]}  Qxd6 {[%clk 0:02:07]} 24. Rxc8+ {[%clk 0:02:26]}  Bf8 {[%clk 0:02:07]} 25. Qf3 {[%clk 0:02:22]}  Kg7 {[%clk 0:02:05]} 26. g3 {[%clk 0:02:18]}  Be7 {[%clk 0:02:03]} 27. h4 {[%clk 0:02:15]}  h5 {[%clk 0:02:02]} 28. Ra8 {[%clk 0:02:06]}  c4 {[%clk 0:02:00]} 29. Ra1 {[%clk 0:02:02]}  Qe5 {[%clk 0:01:58]} 30. Qe2 {[%clk 0:01:57]}  Qd6 {[%clk 0:01:50]} 31. Rd1 {[%clk 0:01:57]}  Bd8 {[%clk 0:01:49]} 32. Qxc4 {[%clk 0:01:48]}  Bb6 {[%clk 0:01:39]} 33. Qf4 {[%clk 0:01:47]}  Qc5 {[%clk 0:01:36]} 34. Kg2 {[%clk 0:01:43]}  Ng4 {[%clk 0:01:33]} 35. Rd2 {[%clk 0:01:42]}  d4 {[%clk 0:01:25]} 36. Ne4 {[%clk 0:01:41]}  Qd5 {[%clk 0:01:25]} 37. Qf3 {[%clk 0:01:29]}  Ne5 {[%clk 0:01:12]} 38. Qf6+ {[%clk 0:01:28]}  Kg8 {[%clk 0:01:12]} 39. f3 {[%clk 0:01:25]}  Bd8 {[%clk 0:01:04]} 40. Qd6 {[%clk 0:01:24]}  Qxd6 {[%clk 0:01:01]} 41. Nxd6 {[%clk 0:01:24]}  d3 {[%clk 0:01:01]} 42. f4 {[%clk 0:01:20]}  Ng4 {[%clk 0:00:55]} 43. Bxd3 {[%clk 0:01:20]}  Bb6 {[%clk 0:00:53]} 44. Nc4 {[%clk 0:01:17]}  Be3 {[%clk 0:00:51]} 45. Nxe3 {[%clk 0:01:16]}  Nxe3+ {[%clk 0:00:51]} 46. Kf3 {[%clk 0:01:16]}  Ned5 {[%clk 0:00:49]} 47. Be4 {[%clk 0:01:15]}  Nb6 {[%clk 0:00:49]} 48. b3 {[%clk 0:01:14]}  Kf8 {[%clk 0:00:43]} 49. Rd6 {[%clk 0:01:13]}  Nc8 {[%clk 0:00:41]} 50. Rd8+ {[%clk 0:01:12]} 1-0


[Site "https://www.chess.com"]

[Event "Titled Tuesday Blitz April 12 Early 2022"]
[White "Seul, Georg"]
[Black "Rudykh, Stepan"]
[WhiteFideId "4601653"]
[BlackFideId "4180321"]
[WhiteElo "2271"]
[BlackElo "2138"]
[Result "1-0"]
[Round "01"]
[TimeControl "180+1"]
[Date "2022.04.13"]
[WhiteClock "0:00:12"]
[BlackClock "0:00:29"]

1. e4 {[%clk 0:02:57]}  e6 {[%clk 0:03:00]} 2. d4 {[%clk 0:02:55]}  d5 {[%clk 0:03:00]} 3. e5 {[%clk 0:02:55]}  c5 {[%clk 0:03:00]} 4. c3 {[%clk 0:02:54]}  Nc6 {[%clk 0:03:01]} 5. Nf3 {[%clk 0:02:54]}  Bd7 {[%clk 0:03:01]} 6. Be2 {[%clk 0:02:54]}  Qb6 {[%clk 0:02:52]} 7. O-O {[%clk 0:02:52]}  Rc8 {[%clk 0:02:31]} 8. dxc5 {[%clk 0:02:47]}  Bxc5 {[%clk 0:02:28]} 9. b4 {[%clk 0:02:47]}  Bf8 {[%clk 0:02:18]} 10. Bf4 {[%clk 0:02:44]}  Nge7 {[%clk 0:02:14]} 11. Nbd2 {[%clk 0:02:43]}  a6 {[%clk 0:02:03]} 12. a4 {[%clk 0:02:39]}  Ng6 {[%clk 0:01:50]} 13. Bg3 {[%clk 0:02:38]}  Qc7 {[%clk 0:01:42]} 14. Re1 {[%clk 0:02:34]}  Ncxe5 {[%clk 0:01:39]} 15. Nxe5 {[%clk 0:02:31]}  Nxe5 {[%clk 0:01:40]} 16. Bxa6 {[%clk 0:02:15]}  Bd6 {[%clk 0:01:27]} 17. Bxb7 {[%clk 0:01:53]}  Qxb7 {[%clk 0:01:26]} 18. Bxe5 {[%clk 0:01:51]}  Bxe5 {[%clk 0:01:27]} 19. Rxe5 {[%clk 0:01:51]}  Rxc3 {[%clk 0:01:28]} 20. b5 {[%clk 0:01:49]}  f6 {[%clk 0:01:22]} 21. Re1 {[%clk 0:01:41]}  O-O {[%clk 0:01:21]} 22. Nf3 {[%clk 0:01:36]}  e5 {[%clk 0:01:19]} 23. Qd2 {[%clk 0:01:35]}  Rfc8 {[%clk 0:01:18]} 24. Rec1 {[%clk 0:01:34]}  d4 {[%clk 0:01:17]} 25. h4 {[%clk 0:01:23]}  Bg4 {[%clk 0:00:58]} 26. Nh2 {[%clk 0:01:11]}  Bf5 {[%clk 0:00:58]} 27. Nf1 {[%clk 0:00:59]}  Rc2 {[%clk 0:00:50]} 28. Rxc2 {[%clk 0:00:59]}  Rxc2 {[%clk 0:00:51]} 29. Qb4 {[%clk 0:00:57]}  Qe4 {[%clk 0:00:44]} 30. Ng3 {[%clk 0:00:24]}  Qxh4 {[%clk 0:00:42]} 31. b6 {[%clk 0:00:17]}  Be4 {[%clk 0:00:39]} 32. b7 {[%clk 0:00:15]}  Bxb7 {[%clk 0:00:39]} 33. Qb3+ {[%clk 0:00:15]}  Bd5 {[%clk 0:00:37]} 34. Qxc2 {[%clk 0:00:15]}  h6 {[%clk 0:00:34]} 35. a5 {[%clk 0:00:15]}  e4 {[%clk 0:00:33]} 36. Qc5 {[%clk 0:00:13]}  Qg5 {[%clk 0:00:30]} 37. Qxd4 {[%clk 0:00:13]}  f5 {[%clk 0:00:29]} 38. Qxd5+ {[%clk 0:00:12]} 1-0


[Site "https://www.chess.com"]

[Event "Titled Tuesday Blitz April 12 Early 2022"]
[White "Shtyka, Sergey"]
[Black "Sychev, Klementy"]
[WhiteFideId "4138465"]
[BlackFideId "4114060"]
[WhiteElo "2453"]
[BlackElo "2836"]
[Result "0-1"]
[Round "01"]
[TimeControl "180+1"]
[Date "2022.04.13"]
[WhiteClock "0:00:29"]
[BlackClock "0:00:26"]

1. e4 {[%clk 0:02:59]}  c5 {[%clk 0:02:57]} 2. Nf3 {[%clk 0:02:59]}  d6 {[%clk 0:02:58]} 3. d4 {[%clk 0:02:59]}  cxd4 {[%clk 0:02:58]} 4. Nxd4 {[%clk 0:03:00]}  Nf6 {[%clk 0:02:59]} 5. Nc3 {[%clk 0:03:00]}  a6 {[%clk 0:03:00]} 6. Bc4 {[%clk 0:02:59]}  e6 {[%clk 0:03:00]} 7. O-O {[%clk 0:02:59]}  b5 {[%clk 0:02:58]} 8. Bd3 {[%clk 0:02:59]}  Bb7 {[%clk 0:02:55]} 9. a3 {[%clk 0:02:59]}  Be7 {[%clk 0:02:55]} 10. Be3 {[%clk 0:02:57]}  O-O {[%clk 0:02:55]} 11. f4 {[%clk 0:02:57]}  Nbd7 {[%clk 0:02:56]} 12. Qf3 {[%clk 0:02:55]}  Nc5 {[%clk 0:02:52]} 13. Rae1 {[%clk 0:02:55]}  Rc8 {[%clk 0:02:52]} 14. Kh1 {[%clk 0:02:54]}  g6 {[%clk 0:02:42]} 15. Bf2 {[%clk 0:02:50]}  d5 {[%clk 0:02:35]} 16. e5 {[%clk 0:02:32]}  Nfe4 {[%clk 0:02:35]} 17. Nb1 {[%clk 0:02:24]}  Nxf2+ {[%clk 0:02:31]} 18. Qxf2 {[%clk 0:02:21]}  Bh4 {[%clk 0:02:12]} 19. g3 {[%clk 0:02:18]}  Ne4 {[%clk 0:02:03]} 20. Qe3 {[%clk 0:02:03]}  Be7 {[%clk 0:02:01]} 21. Nd2 {[%clk 0:01:59]}  Bc5 {[%clk 0:01:59]} 22. c3 {[%clk 0:01:56]}  Nxd2 {[%clk 0:01:28]} 23. Qxd2 {[%clk 0:01:55]}  Qb6 {[%clk 0:01:28]} 24. Bb1 {[%clk 0:01:51]}  a5 {[%clk 0:01:28]} 25. f5 {[%clk 0:01:47]}  exf5 {[%clk 0:01:26]} 26. e6 {[%clk 0:01:27]}  fxe6 {[%clk 0:01:00]} 27. Rxe6 {[%clk 0:01:21]}  Qxe6 {[%clk 0:00:53]} 28. Nxe6 {[%clk 0:01:11]}  d4+ {[%clk 0:00:52]} 29. Qg2 {[%clk 0:01:10]}  Bxg2+ {[%clk 0:00:50]} 30. Kxg2 {[%clk 0:01:11]}  dxc3 {[%clk 0:00:50]} 31. Nxf8 {[%clk 0:01:06]}  Bxf8 {[%clk 0:00:48]} 32. bxc3 {[%clk 0:01:06]}  Rxc3 {[%clk 0:00:48]} 33. a4 {[%clk 0:01:04]}  bxa4 {[%clk 0:00:47]} 34. Rf4 {[%clk 0:01:00]}  a3 {[%clk 0:00:45]} 35. Rf2 {[%clk 0:00:54]}  Bc5 {[%clk 0:00:43]} 36. Rd2 {[%clk 0:00:50]}  Kf8 {[%clk 0:00:37]} 37. Ba2 {[%clk 0:00:49]}  Bb4 {[%clk 0:00:33]} 38. Re2 {[%clk 0:00:49]}  Rd3 {[%clk 0:00:32]} 39. Kh3 {[%clk 0:00:48]}  Kg7 {[%clk 0:00:31]} 40. Kh4 {[%clk 0:00:44]}  Kh6 {[%clk 0:00:31]} 41. Kh3 {[%clk 0:00:43]}  Kg5 {[%clk 0:00:31]} 42. Bg8 {[%clk 0:00:39]}  h5 {[%clk 0:00:30]} 43. Bf7 {[%clk 0:00:39]}  Rd7 {[%clk 0:00:27]} 44. Be8 {[%clk 0:00:35]}  Re7 {[%clk 0:00:26]} 45. Rxe7 {[%clk 0:00:32]}  Bxe7 {[%clk 0:00:26]} 46. Bf7 {[%clk 0:00:33]}  Kf6 {[%clk 0:00:25]} 47. Ba2 {[%clk 0:00:33]}  Ke5 {[%clk 0:00:26]} 48. Kg2 {[%clk 0:00:29]}  Kd4 {[%clk 0:00:26]} 0-1


[Site "https://www.chess.com"]